bitfinex/quotes_SOLUSD_20241123
["timestamp","ask_amount","ask_price","bid_price","bid_amount"]
[1732330165331,12.04753617,254.59,254.43,2.5]
[1732330165640,14.27086508,254.56,254.43,2.5]
[1732330166025,2.53086508,254.56,254.43,2.5]
[1732330166222,2.53086508,254.56,254.49,2.5]
[1732330169023,2.53086508,254.56,254.46,2.5]
[1732330169222,2.53086508,254.56,254.43,2.5]
[1732330169618,2.53086508,254.56,254.42,2.5]
[1732330169818,14.27086508,254.56,254.44,2.5]
[1732330170036,14.27086508,254.56,254.41,15.7064]
[1732330170338,14.27086508,254.56,254.41,13.2064]
[1732330170526,23.78753617,254.54,254.41,13.2064]
[1732330170723,23.78753617,254.54,254.41,15.7064]
[1732330171240,23.78753617,254.5,254.41,13.2064]
[1732330171832,12.04753617,254.52,254.41,13.2064]
[1732330172020,11.74,254.52,254.41,13.2064]
[1732330172223,23.78753617,254.52,254.41,13.2064]
[1732330172645,12.04753617,254.46,254.32,48.9591]
[1732330172842,12.04753617,254.5,254.36,2.5]
[1732330173047,23.78753617,254.52,254.38,2.5]
[1732330173343,11.74,254.52,254.38,2.5]
[1732330173728,11.74,254.53,254.38,2.5]
[1732330174340,11.74,254.51,254.34,2.5]
[1732330175328,11.74,254.49,254.34,2.5]
[1732330175858,11.74,254.49,254.32,46.4591]
[1732330176058,23.78753617,254.46,254.32,46.4591]
[1732330177656,23.78753617,254.46,254.33,2.5]
[1732330177953,12.04753617,254.52,254.37,2.5]
[1732330178961,11.74,254.51,254.35,2.5]
[1732330179139,12.04753617,254.48,254.32,46.4591]
[1732330179351,11.74,254.47,254.32,46.4591]
[1732330179547,11.74,254.47,254.33,2.5]
[1732330180258,11.74,254.47,254.32,46.4591]
[1732330182343,11.74,254.47,254.33,2.5]
[1732330182934,19.61264923,254.47,254.32,46.4591]
[1732330183256,11.74,254.45,254.32,46.4591]
[1732330183761,23.78753617,254.44,254.32,46.4591]
[1732330184136,23.78753617,254.42,254.32,46.4591]
[1732330184464,11.74,254.39,254.32,14.45480593]
[1732330184648,11.74,254.39,254.26,12.2843]
[1732330184853,12.04753617,254.36,254.26,10.8843]
[1732330185339,23.78753617,254.38,254.26,10.8843]
[1732330187176,26.9233226,254.38,254.26,10.8843]
[1732330188165,26.9233226,254.38,254.26,8.6343]
[1732330189864,26.9233226,254.38,254.26,6.9743]
[1732330190061,23.78753617,254.36,254.25,30.5842]
[1732330190265,23.78753617,254.36,254.25,22.5342]
[1732330190662,26.31840125,254.36,254.25,22.5342]
[1732330190973,23.78753617,254.34,254.17,2.5]
[1732330191359,23.78753617,254.32,254.15,2.5]
[1732330191563,12.04753617,254.3,254.15,2.5]
[1732330191870,12.04753617,254.28,254.13,2.5]
[1732330192073,12.04753617,254.28,254.11,5.0]
[1732330192254,12.04753617,254.26,254.11,5.0]
[1732330193370,11.74,254.29,254.15,2.5]
[1732330193749,12.04753617,254.3,254.15,2.5]
[1732330193963,23.78753617,254.3,254.15,34.6814]
[1732330194155,12.04753617,254.3,254.15,34.6814]
[1732330194684,12.04753617,254.34,254.19,2.5]
[1732330194879,23.78753617,254.34,254.19,2.5]
[1732330195256,23.78753617,254.34,254.19,5.0]
[1732330197885,12.04753617,254.26,254.1,12.2843]
[1732330198063,12.04753617,254.17,254.04,13.3288]
[1732330198258,12.04753617,254.15,254.04,6.02323085]
[1732330198483,12.04753617,254.13,253.91,2.5]
[1732330198857,12.04753617,254.11,253.91,2.5]
[1732330199067,12.04753617,254.09,253.91,2.5]
[1732330199267,12.04753617,254.07,253.89,2.5]
[1732330199475,12.04753617,254.07,253.84,2.5]
[1732330199668,12.04753617,254.05,253.84,2.5]
[1732330199879,12.04753617,254.09,253.83,2.5]
[1732330200063,12.04753617,254.09,253.91,2.5]
[1732330200270,19.70657147,254.1,253.96,2.5]
[1732330200762,7.66457147,254.1,253.96,2.5]
[1732330200976,19.2566336,254.14,253.98,2.5]
[1732330201363,19.2566336,254.1,253.96,34.8608]
[1732330201568,19.2566336,254.12,253.96,34.8608]
[1732330201963,19.2566336,254.1,253.96,32.3608]
[1732330202172,19.2566336,254.06,253.93,13.1702]
[1732330202765,19.2566336,254.08,253.93,13.1702]
[1732330203983,5.9978906,254.31,253.93,13.1702]
[1732330203984,19.2566336,254.04,253.93,13.1702]
[1732330204172,19.2566336,254.02,253.89,32.3608]
[1732330205571,42.0447,254.09,253.89,32.3608]
[1732330205572,19.2566336,254.06,253.9,2.5]
[1732330205878,30.3047,254.09,253.89,32.3608]
[1732330205879,3.13578643,254.08,253.94,2.5]
[1732330206068,22.39242003,254.08,253.94,2.5]
[1732330206267,19.2566336,254.06,253.94,2.5]
[1732330206895,30.3047,254.09,253.94,2.5]
[1732330206896,19.2566336,254.08,253.94,2.5]
[1732330207083,7.71548087,254.09,253.97,2.5]
[1732330207387,19.2566336,254.13,254.0,2.5]
[1732330207570,18.2566336,254.11,253.98,2.5]
[1732330207770,19.2566336,254.09,253.96,2.5]
[1732330208169,19.2566336,254.13,253.96,2.5]
[1732330208394,19.2566336,254.15,254.0,2.5]
[1732330208685,3.13578643,254.14,253.97,2.5]
[1732330208888,3.13578643,254.14,253.89,32.3608]
[1732330208889,19.2566336,254.09,253.94,2.5]
[1732330209584,19.2566336,254.07,253.94,2.5]
[1732330209780,19.2566336,254.07,253.92,2.5]
[1732330210481,19.2566336,254.07,253.94,2.5]
[1732330210686,19.2566336,254.05,253.92,2.5]
[1732330210987,19.2566336,254.03,253.9,2.5]
[1732330211799,30.9966336,254.05,253.87,13.1702]
[1732330211999,30.9966336,254.05,253.92,2.5]
[1732330212670,30.9966336,254.05,253.88,2.5]
[1732330212878,19.2566336,254.09,253.94,2.5]
[1732330214377,19.2566336,254.07,253.94,2.5]
[1732330214573,30.9966336,254.07,253.9,2.5]
[1732330214895,30.9966336,254.07,253.87,13.1702]
[1732330214896,30.9966336,254.07,253.92,2.5]
[1732330215070,19.2566336,254.09,253.95,2.5]
[1732330215271,19.2566336,254.13,253.99,2.5]
[1732330215481,22.39242003,254.13,254.03,2.5]
[1732330216003,24.92328511,254.13,254.01,2.5]
[1732330216208,2.53086508,254.12,254.01,2.5]
[1732330216682,2.53086508,254.12,254.01,15.0729]
[1732330216890,2.53086508,254.12,254.04,2.5]
[1732330217899,18.21904608,254.12,254.04,2.5]
[1732330218478,19.2566336,254.11,254.01,12.5729]
[1732330218800,18.21904608,254.12,254.01,12.5729]
[1732330219179,18.21904608,254.12,254.02,2.5]
[1732330219398,18.21904608,254.12,254.04,2.5]
[1732330219779,18.21904608,254.12,254.02,2.5]
[1732330219983,18.21904608,254.12,254.01,12.5729]
[1732330221404,18.21904608,254.12,254.01,15.0729]
[1732330221782,18.21904608,254.12,254.03,2.5]
[1732330223102,18.21904608,254.12,254.01,12.5729]
[1732330223103,19.2566336,254.11,254.01,12.5729]
[1732330223600,2.53086508,254.11,254.01,12.5729]
[1732330224083,2.53086508,254.11,254.01,15.0729]
[1732330224283,2.53086508,254.11,254.01,12.5729]
[1732330225689,12.03272654,254.1,253.98,31.9327]
[1732330226087,2.53086508,254.09,253.98,31.9327]
[1732330226695,2.53086508,254.09,254.0,2.5]
[1732330228106,2.53086508,254.09,253.99,2.5]
[1732330231202,15.688181,254.12,254.06,2.5]
[1732330231500,7.82872925,254.13,254.08,2.5]
[1732330231704,2.53086508,254.16,254.08,2.5]
[1732330231893,10.29081798,254.16,254.12,2.5]
[1732330232212,15.684982,254.14,254.12,2.5]
[1732330232407,7.7599529,254.16,254.12,2.5]
[1732330232611,3.13578643,254.2,254.16,2.5]
[1732330232783,15.681293,254.2,254.16,2.5]
[1732330232983,2.53086508,254.22,254.16,2.5]
[1732330233210,18.21184608,254.22,254.16,2.5]
[1732330233511,26.03630824,254.22,254.16,2.5]
[1732330234001,23.50544316,254.22,254.11,32.6025]
[1732330234208,35.5381697,254.22,254.11,32.6025]
[1732330234401,35.5381697,254.22,254.09,2.5]
[1732330234799,12.03272654,254.14,253.98,30.7756]
[1732330236112,23.50544316,254.22,253.98,30.7756]
[1732330236113,2.53086508,254.13,253.98,30.7756]
[1732330236316,15.680981,254.22,253.98,30.7756]
[1732330236317,12.03272654,254.18,253.98,30.7756]
[1732330236517,12.03272654,254.2,253.98,30.7756]
[1732330236715,19.24113131,254.21,253.98,30.7756]
[1732330237312,15.680981,254.22,254.0,5.0]
[1732330237514,23.61401112,254.22,254.0,5.0]
[1732330237888,23.61401112,254.22,253.98,30.7756]
[1732330238310,19.24113131,254.21,253.98,30.7756]
[1732330239517,23.61401112,254.22,254.09,32.9112]
[1732330239518,15.680981,254.22,254.09,32.9112]
[1732330239694,5.9978906,254.36,254.11,5.0]
[1732330239897,15.675676,254.34,254.13,2.5]
[1732330240397,15.675676,254.34,254.12,47.9048]
[1732330240398,7.68247451,254.39,254.12,47.9048]
[1732330240593,19.24113131,254.38,254.12,45.4048]
[1732330240828,19.24113131,254.32,254.12,45.4048]
[1732330240991,19.24113131,254.3,254.12,45.4048]
[1732330241720,19.24113131,254.26,254.12,45.4048]
[1732330243818,25.23902191,254.32,254.12,45.4048]
[1732330244120,25.23902191,254.34,254.12,45.4048]
[1732330244293,19.24113131,254.34,254.12,45.4048]
[1732330245298,25.23902191,254.36,254.12,45.4048]
[1732330245806,13.672711,254.37,254.13,2.5]
[1732330246002,25.23902191,254.38,254.13,2.5]
[1732330246206,19.24113131,254.38,254.12,45.4048]
[1732330246507,19.24113131,254.36,254.12,45.4048]
[1732330246716,25.23902191,254.38,254.12,45.4048]
[1732330246924,19.24113131,254.38,254.12,47.9048]
[1732330247223,19.24113131,254.38,254.13,2.5]
[1732330247701,23.61364681,254.39,254.13,2.5]
[1732330248322,23.61364681,254.39,254.12,45.4048]
[1732330248626,19.24113131,254.37,254.13,23.776884]
[1732330249907,19.24113131,254.35,254.13,23.776884]
[1732330250203,19.24113131,254.33,254.12,45.4048]
[1732330250919,19.24113131,254.31,254.12,45.4048]
[1732330251230,19.24113131,254.29,254.12,45.4048]
[1732330253305,27.11229264,254.29,254.12,45.4048]
[1732330254100,7.87116133,254.29,254.12,45.4048]
[1732330254324,19.24113131,254.31,254.12,45.4048]
[1732330255015,19.24113131,254.27,254.12,45.4048]
[1732330255331,19.24113131,254.29,254.12,45.4048]
[1732330257327,19.24113131,254.27,254.12,45.4048]
[1732330257836,12.13131851,254.33,254.12,45.4048]
[1732330257837,19.24113131,254.21,254.12,45.4048]
[1732330258009,19.24113131,254.21,254.12,32.9112]
[1732330258212,19.24113131,254.17,254.06,12.8924]
[1732330259236,19.24113131,254.15,254.06,12.8924]
[1732330260339,5.9978906,254.22,254.06,12.8924]
[1732330260550,7.91155023,254.22,254.06,12.8924]
[1732330260710,19.24113131,254.23,254.06,12.8924]
[1732330261045,19.24113131,254.21,254.06,12.8924]
[1732330262024,19.24113131,254.15,254.06,12.8924]
[1732330262539,19.24113131,254.17,254.06,12.8924]
[1732330262837,19.24113131,254.21,254.06,12.8924]
[1732330263931,19.24113131,254.19,254.06,12.8924]
[1732330264232,25.52484332,254.23,254.06,12.8924]
[1732330264233,19.24113131,254.17,254.06,12.8924]
[1732330264734,5.9978906,254.21,254.06,12.8924]
[1732330264941,19.91827123,254.23,254.06,12.8924]
[1732330264942,25.23902191,254.22,254.06,12.8924]
[1732330265533,5.9978906,254.21,254.06,12.8924]
[1732330265840,19.24113131,254.2,254.06,12.8924]
[1732330266632,5.9978906,254.22,254.06,12.8924]
[1732330266822,5.9978906,254.23,254.06,12.8924]
[1732330267030,25.23902191,254.24,254.06,12.8924]
[1732330267275,5.9978906,254.24,254.06,12.8924]
[1732330267742,5.9978906,254.25,254.06,12.8924]
[1732330268528,25.23902191,254.26,254.06,12.8924]
[1732330268841,19.24113131,254.23,254.06,12.8924]
[1732330269530,5.9978906,254.24,254.06,12.8924]
[1732330269717,5.9978906,254.25,254.06,12.8924]
[1732330270144,5.9978906,254.27,254.06,12.8924]
[1732330270329,13.67609961,254.28,254.06,12.8924]
[1732330270640,5.9978906,254.28,254.08,30.6637]
[1732330270837,13.7922401,254.29,254.08,30.6637]
[1732330271069,5.9978906,254.29,254.08,30.6637]
[1732330271349,5.9978906,254.29,254.08,33.1637]
[1732330271556,5.9978906,254.3,254.08,33.1637]
[1732330272044,5.9978906,254.3,254.09,12.9026]
[1732330272435,19.24113131,254.27,254.09,12.9026]
[1732330273748,19.24113131,254.25,254.09,12.9026]
[1732330273922,19.24113131,254.22,254.09,12.9026]
[1732330274921,19.24113131,254.2,254.09,12.9026]
[1732330276756,19.24113131,254.18,254.08,30.6637]
[1732330279422,13.76512196,254.2,254.08,30.6637]
[1732330279829,5.9978906,254.23,254.08,30.6637]
[1732330280053,5.9978906,254.24,254.09,13.2269]
[1732330280254,5.9978906,254.25,254.09,13.2269]
[1732330280731,5.9978906,254.26,254.09,13.2269]
[1732330281325,5.9978906,254.25,254.09,13.2269]
[1732330282026,5.9978906,254.26,254.09,13.2269]
[1732330282223,5.9978906,254.25,254.09,13.2269]
[1732330283229,5.9978906,254.26,254.09,13.2269]
[1732330285242,5.9978906,254.27,254.09,13.2269]
[1732330285645,5.9978906,254.26,254.09,13.2269]
[1732330286865,5.9978906,254.25,254.09,13.2269]
[1732330287042,5.9978906,254.24,254.09,13.2269]
[1732330287237,5.9978906,254.23,254.09,13.2269]
[1732330288237,5.9978906,254.24,254.09,13.2269]
[1732330288940,5.9978906,254.23,254.09,13.2269]
[1732330289334,5.9978906,254.22,254.09,13.2269]
[1732330290942,5.9978906,254.2,254.09,13.2269]
[1732330291153,5.9978906,254.19,254.09,13.2269]
[1732330291852,5.9978906,254.18,254.09,13.2269]
[1732330292038,5.9978906,254.17,254.09,13.2269]
[1732330292242,5.9978906,254.18,254.09,13.2269]
[1732330293653,5.9978906,254.16,254.08,30.6637]
[1732330293839,5.9978906,254.16,254.03,12.4573]
[1732330294039,19.24113131,254.09,253.97,12.4573]
[1732330294249,19.24113131,254.11,253.97,9.2573]
[1732330295164,25.23902191,254.11,253.97,9.2573]
[1732330295342,19.24113131,254.11,253.97,9.2573]
[1732330295940,19.24113131,254.09,253.97,9.2573]
[1732330296146,19.24113131,254.09,253.96,31.0357]
[1732330296364,19.24113131,254.07,253.96,31.0357]
[1732330297245,7.82419466,254.09,253.96,43.493]
[1732330297460,25.23902191,254.13,253.96,43.493]
[1732330298367,19.24113131,254.13,253.96,43.493]
[1732330298666,19.24113131,254.09,253.96,43.493]
[1732330299375,19.24113131,254.07,253.96,31.0357]
[1732330299875,19.19912035,254.07,253.96,31.0357]
[1732330301963,19.19912035,254.07,253.9,44.8904]
[1732330302750,12.03859962,254.07,253.9,44.8904]
[1732330302974,37.1704906,254.1,253.9,44.8904]
[1732330302975,12.03859962,254.05,253.9,44.8904]
[1732330303672,12.03859962,254.01,253.9,44.8904]
[1732330303867,12.03859962,254.01,253.9,31.6059]
[1732330304070,12.03859962,253.99,253.9,31.6059]
[1732330305063,12.03859962,253.99,253.84,44.8904]
[1732330305456,12.03859962,253.97,253.84,44.8904]
[1732330305770,12.03859962,253.95,253.84,44.8904]
[1732330305975,12.03859962,253.91,253.78,44.8904]
[1732330306758,12.03859962,253.89,253.78,44.8904]
[1732330307169,12.03859962,253.89,253.78,31.6059]
[1732330307475,12.03859962,253.87,253.73,13.2845]
[1732330307976,12.03859962,253.89,253.73,13.2845]
[1732330308274,12.03859962,253.93,253.73,13.2845]
[1732330308652,19.28249021,253.93,253.73,13.2845]
[1732330309057,27.12600093,253.93,253.73,13.2845]
[1732330310267,19.28249021,253.91,253.73,13.2845]
[1732330310462,19.28249021,253.89,253.73,13.2845]
[1732330310664,19.28249021,253.85,253.72,31.6059]
[1732330311055,31.73481909,253.9,253.72,31.6059]
[1732330311056,19.28249021,253.83,253.72,31.6059]
[1732330312571,19.28249021,253.85,253.72,31.6059]
[1732330313379,31.73481909,253.9,253.65,13.2845]
[1732330313380,19.28249021,253.79,253.66,31.0024]
[1732330314677,19.28249021,253.77,253.66,31.0024]
[1732330315479,19.28249021,253.69,253.53,31.0024]
[1732330315685,19.28249021,253.67,253.53,31.0024]
[1732330317060,19.28249021,253.73,253.53,31.0024]
[1732330317265,21.81335529,253.73,253.53,31.0024]
[1732330317466,13.0948,253.76,253.53,31.0024]
[1732330317467,19.28249021,253.71,253.53,31.0024]
[1732330318686,19.28249021,253.69,253.53,31.0024]
[1732330321183,19.28249021,253.71,253.53,31.0024]
[1732330322958,19.28249021,253.69,253.53,31.0024]
[1732330323973,14.24,253.71,253.53,31.0024]
[1732330324170,19.28249021,253.63,253.51,13.1268]
[1732330324488,19.95572082,253.67,253.47,31.8106]
[1732330324489,19.28249021,253.59,253.47,31.8106]
[1732330325386,31.02249021,253.59,253.47,31.8106]
[1732330325563,19.28249021,253.57,253.47,31.8106]
[1732330325762,19.28249021,253.57,253.45,12.7554]
[1732330325987,19.28249021,253.57,253.41,31.8106]
[1732330329092,19.28249021,253.55,253.41,31.8106]
[1732330329281,19.28249021,253.53,253.41,31.8106]
[1732330331983,19.28249021,253.57,253.41,31.8106]
[1732330332480,7.74271268,253.59,253.41,31.8106]
[1732330332681,3.13578643,253.58,253.41,31.8106]
[1732330332873,12.0826044,253.55,253.34,31.8106]
[1732330333090,12.0826044,253.53,253.34,31.8106]
[1732330333490,12.0826044,253.49,253.34,31.8106]
[1732330333692,12.0826044,253.47,253.34,31.8106]
[1732330336495,12.0826044,253.49,253.34,31.8106]
[1732330336689,8.00955906,253.53,253.34,31.8106]
[1732330336881,12.0826044,253.52,253.34,31.8106]
[1732330342715,11.74,253.53,253.34,31.8106]
[1732330343285,12.0826044,253.54,253.34,31.8106]
[1732330344987,12.0826044,253.52,253.34,31.8106]
[1732330345189,12.0826044,253.5,253.34,31.8106]
[1732330346305,12.0826044,253.52,253.34,31.8106]
[1732330347910,12.0826044,253.54,253.34,31.8106]
[1732330348092,7.98285565,253.55,253.34,31.8106]
[1732330348293,12.0826044,253.58,253.34,31.8106]
[1732330348600,3.13578643,253.57,253.34,31.8106]
[1732330348805,5.66665151,253.57,253.34,34.3106]
[1732330349108,5.66665151,253.57,253.37,30.7022]
[1732330349409,5.66665151,253.57,253.39,30.7022]
[1732330350089,5.66665151,253.57,253.4,12.0669]
[1732330350406,5.66665151,253.57,253.41,30.7022]
[1732330351705,12.0826044,253.56,253.41,30.7022]
[1732330351918,12.0826044,253.54,253.41,30.7022]
[1732330352206,3.13578643,253.53,253.41,30.7022]
[1732330353613,12.0826044,253.52,253.41,30.7022]
[1732330353983,3.13578643,253.51,253.41,30.7022]
[1732330356412,12.0826044,253.5,253.41,30.7022]
[1732330356912,15.21839083,253.5,253.41,30.7022]
[1732330357086,3.13578643,253.5,253.41,30.7022]
[1732330357989,7.89957142,253.53,253.41,30.7022]
[1732330358191,12.0826044,253.54,253.31,31.4408]
[1732330359520,12.0826044,253.52,253.31,31.4408]
[1732330361602,11.74,253.51,253.31,31.4408]
[1732330361801,12.0826044,253.52,253.31,31.4408]
[1732330362512,2.8735007,253.51,253.31,31.4408]
[1732330362819,2.8735007,253.5,253.31,31.4408]
[1732330364598,2.8735007,253.49,253.31,31.4408]
[1732330364790,2.8735007,253.48,253.31,31.4408]
[1732330364997,2.8735007,253.47,253.31,31.4408]
[1732330365199,12.0826044,253.51,253.31,31.4408]
[1732330365491,19.68293724,253.56,253.31,31.4408]
[1732330365492,12.0826044,253.49,253.31,31.4408]
[1732330365802,2.87793956,253.48,253.31,31.4408]
[1732330366002,2.87793956,253.47,253.31,31.4408]
[1732330366216,2.87793956,253.46,253.31,31.4408]
[1732330366520,2.87752339,253.45,253.31,31.4408]
[1732330366717,2.87752339,253.44,253.31,31.4408]
[1732330366902,2.87752339,253.5,253.31,31.4408]
[1732330367108,2.87752339,253.49,253.31,31.4408]
[1732330367312,2.87752339,253.48,253.31,31.4408]
[1732330367603,2.87752339,253.47,253.31,31.4408]
[1732330367810,2.87752339,253.46,253.31,31.4408]
[1732330368001,18.080495,253.51,253.31,31.4408]
[1732330368002,2.87752339,253.45,253.31,31.4408]
[1732330368202,2.87752339,253.44,253.31,31.4408]
[1732330368402,2.87752339,253.43,253.31,31.4408]
[1732330368717,2.87752339,253.42,253.31,31.4408]
[1732330368911,2.87752339,253.41,253.31,31.4408]
[1732330369111,8.87541399,253.5,253.31,31.4408]
[1732330369417,2.88437775,253.49,253.31,31.4408]
[1732330369631,2.88437775,253.48,253.31,31.4408]
[1732330369921,2.88437775,253.47,253.31,31.4408]
[1732330370109,2.88437775,253.49,253.31,31.4408]
[1732330370309,2.88437775,253.48,253.31,31.4408]
[1732330370619,2.88437775,253.47,253.31,31.4408]
[1732330370824,2.88437775,253.46,253.31,31.4408]
[1732330371023,2.88437775,253.45,253.31,31.4408]
[1732330371228,2.88437775,253.44,253.31,31.4408]
[1732330371429,2.88437775,253.43,253.31,31.4408]
[1732330371726,2.88437775,253.42,253.32,12.7291]
[1732330371930,2.88437775,253.41,253.33,31.3717]
[1732330372132,5.9978906,253.51,253.33,31.3717]
[1732330372340,2.8868827,253.5,253.33,31.3717]
[1732330372508,2.8868827,253.49,253.33,31.3717]
[1732330373424,2.8868827,253.48,253.33,31.3717]
[1732330373603,2.8868827,253.47,253.33,31.3717]
[1732330373806,2.8868827,253.46,253.33,31.3717]
[1732330374003,2.8868827,253.45,253.33,31.3717]
[1732330374228,2.8868827,253.44,253.33,31.3717]
[1732330374411,2.8868827,253.43,253.33,31.3717]
[1732330374726,2.8868827,253.42,253.33,31.3717]
[1732330374931,2.8868827,253.41,253.33,31.3717]
[1732330375225,2.8868827,253.4,253.33,31.3717]
[1732330375425,5.9978906,253.49,253.33,31.3717]
[1732330375634,8.88365154,253.48,253.33,31.3717]
[1732330375820,2.88576094,253.47,253.33,31.3717]
[1732330376002,2.88555243,253.46,253.33,31.3717]
[1732330376202,5.9978906,253.43,253.33,31.3717]
[1732330376429,2.88555243,253.42,253.33,31.3717]
[1732330376635,2.88555243,253.41,253.33,31.3717]
[1732330376931,2.88555243,253.4,253.33,31.3717]
[1732330377136,5.9978906,253.42,253.33,31.3717]
[1732330377137,2.88555243,253.39,253.33,31.3717]
[1732330377425,2.88555243,253.38,253.33,31.3717]
[1732330377614,2.88555243,253.37,253.33,31.3717]
[1732330377810,2.88555243,253.36,253.33,31.3717]
[1732330378040,2.88555243,253.35,253.33,31.3717]
[1732330378336,5.9978906,253.42,253.33,31.3717]
[1732330378520,2.88374197,253.41,253.33,31.3717]
[1732330378839,2.88374197,253.41,253.12,0.59208023]
[1732330378840,5.9978906,253.35,253.24,31.6789]
[1732330379021,8.88163257,253.34,253.24,31.6789]
[1732330379333,2.88374197,253.33,253.24,31.6789]
[1732330379516,2.88374197,253.32,253.24,31.6789]
[1732330379718,2.88374197,253.31,253.24,31.6789]
[1732330379919,2.88374197,253.3,253.24,31.6789]
[1732330380124,2.88374197,253.29,253.24,31.6789]
[1732330380311,2.88374197,253.28,253.24,31.6789]
[1732330380511,2.88374197,253.27,253.24,30.12309889]
[1732330380726,2.88374197,253.26,253.24,30.12309889]
[1732330380947,2.88374197,253.25,253.24,30.12309889]
[1732330381521,7.97577707,253.32,253.24,30.12309889]
[1732330381705,2.87998714,253.31,253.24,30.12309889]
[1732330381912,5.9978906,253.34,253.24,30.12309889]
[1732330381913,2.88003378,253.3,253.24,30.12309889]
[1732330382141,2.88003378,253.29,253.24,30.12309889]
[1732330382313,2.87846661,253.28,253.24,30.12309889]
[1732330382637,2.87846661,253.27,253.24,30.12309889]
[1732330382811,2.87846661,253.34,253.24,30.12309889]
[1732330383017,2.87846661,253.33,253.24,30.12309889]
[1732330383231,2.87846661,253.32,253.11,12.0727]
[1732330383424,2.87846661,253.31,253.12,0.59235456]
[1732330383617,2.87846661,253.3,253.13,31.6789]
[1732330383817,20.06246836,253.35,253.13,31.6789]
[1732330383818,2.87846661,253.29,253.13,31.6789]
[1732330384020,2.87846661,253.28,253.13,31.6789]
[1732330384335,2.87846661,253.27,253.13,31.6789]
[1732330384638,20.06246836,253.35,253.13,31.6789]
[1732330384834,2.87419483,253.34,253.13,31.6789]
[1732330385135,6.00998126,253.34,253.13,31.6789]
[1732330385341,2.87419483,253.33,253.13,31.6789]
[1732330385640,2.87419483,253.32,253.13,31.6789]
[1732330386028,2.87419483,253.31,253.13,31.6789]
[1732330386227,2.87419483,253.3,253.13,31.6789]
[1732330386422,2.87419483,253.29,253.13,31.6789]
[1732330386733,2.87419483,253.28,253.13,31.6789]
[1732330386934,2.87419483,253.27,253.13,31.6789]
[1732330387142,2.87419483,253.26,253.13,31.6789]
[1732330387311,12.0826044,253.31,253.13,31.6789]
[1732330387514,2.86991586,253.3,253.13,31.6789]
[1732330387738,2.86991586,253.29,253.13,31.6789]
[1732330387939,2.86991586,253.28,253.13,31.6789]
[1732330388136,2.86991586,253.27,253.13,31.6789]
[1732330388339,12.0826044,253.31,253.13,31.6789]
[1732330388518,2.86836442,253.3,253.13,31.6789]
[1732330388721,2.86836442,253.29,253.13,31.6789]
[1732330388937,2.86836442,253.28,253.13,31.6789]
[1732330389137,12.0826044,253.29,253.13,31.6789]
[1732330389336,2.86836442,253.27,253.13,31.6789]
[1732330389531,12.0826044,253.29,253.13,31.6789]
[1732330389736,2.86715864,253.28,253.13,31.6789]
[1732330389942,2.86715864,253.27,253.13,31.6789]
[1732330390248,12.0826044,253.2,253.06,33.1134]
[1732330390819,43.4829044,253.2,253.06,33.1134]
[1732330391532,2.86083847,253.19,253.06,33.1134]
[1732330391734,2.86083847,253.18,253.06,33.1134]
[1732330391935,2.86083847,253.17,253.06,33.1134]
[1732330392239,2.86083847,253.16,253.06,33.1134]
[1732330392441,43.4829044,253.2,253.06,33.1134]
[1732330392628,2.85832701,253.19,253.06,33.1134]
[1732330392836,2.85832701,253.18,253.06,33.1134]
[1732330393140,43.4829044,253.2,253.06,33.1134]
[1732330393329,2.85595158,253.19,253.06,33.1134]
[1732330393523,51.40029821,253.2,253.06,33.1134]
[1732330393825,2.85576566,253.19,253.06,33.1134]
[1732330394032,51.40029821,253.2,253.06,33.1134]
[1732330396350,12.0826044,253.08,253.0,144.23076923]
[1732330396639,12.598,253.1,253.0,69.80028444]
[1732330396640,12.0826044,253.04,253.0,69.80028444]
[1732330397148,12.598,253.03,252.8,144.23076923]
[1732330397356,2.5,252.95,252.9,87.39091644]
[1732330397551,12.0826044,252.95,252.9,48.22899906]
[1732330397837,12.0826044,252.95,252.9,19.26952532]
[1732330398038,12.0826044,252.95,252.8,144.23076923]
[1732330398249,19.96852712,252.95,252.8,144.23076923]
[1732330399759,12.0826044,252.93,252.8,144.23076923]